bitfinex-derivatives/quotes_BTCF0:USTF0_20210708
["timestamp","ask_amount","ask_price","bid_price","bid_amount"]
[1625742032578,0.15434064,32396.0,32391.0,4.44972308]
[1625742032876,1.0,32401.0,32391.0,4.44972308]
[1625742032985,0.4917408,32394.0,32391.0,4.44972308]
[1625742033582,0.49202525,32398.0,32391.0,4.44972308]
[1625742033906,1.47574784,32406.0,32391.0,4.44972308]
[1625742034036,1.0,32405.0,32391.0,4.44972308]
[1625742034224,0.49303314,32403.0,32391.0,4.44972308]
[1625742034484,1.47877084,32411.0,32391.0,4.44972308]
[1625742034937,0.0929,32418.0,32391.0,4.44972308]
[1625742034938,0.4937365,32408.0,32391.0,4.44972308]
[1625742035236,1.48088044,32416.0,32391.0,4.44972308]
[1625742036290,0.49388761,32411.0,32391.0,4.44972308]
[1625742036888,1.0,32417.0,32391.0,4.44972308]
[1625742037188,0.0929,32418.0,32391.0,4.44972308]
[1625742037338,0.49323688,32413.0,32391.0,4.44972308]
[1625742037638,0.0929,32418.0,32391.0,4.44972308]
[1625742038242,1.0,32417.0,32391.0,4.44972308]
[1625742038540,1.0,32416.0,32391.0,4.44972308]
[1625742038842,1.0,32419.0,32391.0,4.44972308]
[1625742039141,1.0,32420.0,32391.0,4.44972308]
[1625742039293,1.0,32422.0,32391.0,4.44972308]
[1625742039592,1.0,32420.0,32391.0,4.44972308]
[1625742039742,0.49307542,32415.0,32391.0,4.44972308]
[1625742039893,0.49287455,32414.0,32391.0,4.44972308]
[1625742040195,0.49305166,32416.0,32391.0,4.44972308]
[1625742040513,0.49315832,32417.0,32391.0,4.44972308]
[1625742040799,0.49315832,32417.0,32392.0,0.00364766]
[1625742041549,0.49251155,32416.0,32392.0,0.00364766]
[1625742041697,0.77893155,32416.0,32392.0,0.00364766]
[1625742041922,0.49241867,32415.0,32392.0,0.00364766]
[1625742042222,1.49241867,32415.0,32392.0,0.00364766]
[1625742042371,2.47642838,32415.0,32392.0,0.00364766]
[1625742042522,1.0,32412.0,32392.0,0.00364766]
[1625742042671,1.0,32412.0,32391.0,4.14651308]
[1625742043048,1.49149311,32412.0,32391.0,4.14651308]
[1625742043197,0.49149311,32412.0,32391.0,4.14651308]
[1625742043352,1.0,32413.0,32391.0,4.14651308]
[1625742043353,1.49153915,32413.0,32391.0,4.14651308]
[1625742043498,0.49143478,32412.0,32391.0,4.14651308]
[1625742043797,0.49143478,32412.0,32392.0,0.0036482]
[1625742044098,0.49143478,32412.0,32391.0,4.14651308]
[1625742044701,0.49139484,32413.0,32391.0,4.14651308]
[1625742045303,1.0,32414.0,32391.0,4.14651308]
[1625742045304,1.49096109,32414.0,32391.0,4.14651308]
[1625742045602,0.49055981,32413.0,32391.0,4.14651308]
[1625742046051,1.49059723,32414.0,32391.0,4.14651308]
[1625742046201,1.99059723,32414.0,32391.0,4.14651308]
[1625742046577,1.49042901,32413.0,32392.0,0.00364785]
[1625742046727,1.0,32409.0,32392.0,0.00364785]
[1625742046876,1.0937,32409.0,32392.0,0.00364785]
[1625742047252,0.0937,32409.0,32392.0,0.00364785]
[1625742047852,0.5834275,32418.0,32392.0,0.00364785]
[1625742048003,0.0927,32418.0,32392.0,0.00364785]
[1625742048602,1.0,32416.0,32392.0,0.00364785]
[1625742048753,0.5,32415.0,32392.0,0.00364785]
[1625742048904,1.0,32413.0,32392.0,0.00364785]
[1625742049052,0.5,32412.0,32392.0,0.00364785]
[1625742049203,1.0,32405.0,32391.0,4.14651308]
[1625742049358,0.26088,32405.0,32391.0,4.14651308]
[1625742049503,0.26088,32406.0,32391.0,4.14651308]
[1625742049655,1.0,32408.0,32391.0,4.14651308]
[1625742049804,1.0,32409.0,32391.0,4.14651308]
[1625742049954,0.5,32412.0,32391.0,4.14651308]
[1625742050552,0.48990869,32413.0,32391.0,4.14651308]
[1625742051154,0.5,32412.0,32391.0,4.14651308]
[1625742051454,0.5,32411.0,32391.0,4.14651308]
[1625742051605,0.5938,32410.0,32391.0,4.14651308]
[1625742051755,0.49000214,32409.0,32391.0,4.14651308]
[1625742051905,0.5,32408.0,32391.0,4.14651308]
[1625742052806,0.99003254,32408.0,32391.0,3.78146395]
[1625742053196,0.5,32408.0,32391.0,3.78146395]
[1625742053485,0.99043752,32408.0,32391.0,3.78146395]
[1625742053635,0.5,32408.0,32391.0,3.78146395]
[1625742053782,1.43332796,32409.0,32391.0,3.78146395]
[1625742053933,0.78000566,32409.0,32391.0,3.78146395]
[1625742054233,0.49048566,32409.0,32391.0,4.03826395]
[1625742054533,0.49105184,32412.0,32391.0,4.03826395]
[1625742054683,1.14599291,32413.0,32391.0,4.03826395]
[1625742055134,0.49131167,32413.0,32391.0,4.03826395]
[1625742055285,0.49131167,32413.0,32391.0,3.78146395]
[1625742055434,1.14664038,32414.0,32391.0,3.78146395]
[1625742055585,1.14810555,32413.0,32391.0,3.78146395]
[1625742055736,1.40526555,32413.0,32391.0,3.78146395]
[1625742055886,0.74922866,32413.0,32391.0,3.78146395]
[1625742056189,0.74922866,32413.0,32392.0,0.00912059]
[1625742056336,1.40525789,32413.0,32392.0,0.00912059]
[1625742056635,0.74922866,32413.0,32392.0,0.30165059]
[1625742056785,0.49206866,32413.0,32392.0,0.30165059]
[1625742057009,0.49206866,32413.0,32393.0,0.01276789]
[1625742057161,1.14970104,32415.0,32393.0,0.01276789]
[1625742057311,0.49275247,32415.0,32393.0,0.01276789]
[1625742057611,0.49378178,32414.0,32393.0,0.01276789]
[1625742058062,1.15213741,32415.0,32393.0,0.01276789]
[1625742058362,0.49377221,32414.0,32392.0,0.01276824]
[1625742059112,1.15241308,32414.0,32392.0,0.01276824]
[1625742059565,0.49536726,32412.0,32392.0,0.01276824]
[1625742059863,0.49542457,32413.0,32392.0,0.01276824]
[1625742060164,1.15591609,32413.0,32392.0,0.01276824]
[1625742060313,0.4952873,32412.0,32392.0,0.01276824]
[1625742060614,0.4952873,32412.0,32392.0,0.00364807]
[1625742060914,1.15714034,32414.0,32393.0,0.0036478]
[1625742061065,0.4959409,32414.0,32393.0,0.2947778]
[1625742061368,1.15746789,32415.0,32394.0,0.00364771]
[1625742061666,1.15746789,32415.0,32394.0,0.01276708]
[1625742062117,1.15746789,32415.0,32394.0,1.01276708]
[1625742062269,1.15781479,32416.0,32394.0,0.01276708]
[1625742062418,1.15781479,32416.0,32397.0,1.0]
[1625742062570,1.15781479,32416.0,32400.0,1.0]
[1625742062721,1.15886649,32419.0,32400.0,1.27407]
[1625742062870,0.49737214,32423.0,32403.0,1.0]
[1625742063169,0.49737214,32423.0,32401.0,0.01276344]
[1625742063356,0.49737214,32423.0,32400.0,1.27407]
[1625742063357,0.49752015,32424.0,32404.0,0.00364656]
[1625742063634,0.49752015,32424.0,32401.0,0.01276272]
[1625742063949,0.49752015,32424.0,32405.0,0.00364654]
[1625742064096,0.50011246,32421.0,32405.0,0.00364654]
[1625742064220,1.16692711,32422.0,32402.0,1.01276183]
[1625742064370,1.16692711,32422.0,32406.0,0.00364628]
[1625742064550,0.50006589,32421.0,32406.0,0.00364628]
[1625742064670,0.50006589,32421.0,32403.0,1.01276152]
[1625742064821,1.00005827,32423.0,32403.0,1.01276152]
[1625742064822,0.50030734,32423.0,32403.0,1.01276152]
[1625742064970,0.50030734,32423.0,32404.0,0.01276108]
[1625742065122,0.50041357,32422.0,32404.0,1.01276108]
[1625742065272,0.50054516,32423.0,32404.0,1.01276108]
[1625742065421,0.50054516,32423.0,32404.0,0.01276108]
[1625742065572,0.50054516,32423.0,32403.0,1.0]
[1625742065573,0.50369908,32419.0,32405.0,0.0127611]
[1625742065871,1.17526356,32420.0,32405.0,0.0127611]
[1625742066022,0.50370201,32419.0,32404.0,0.01276106]
[1625742066475,1.17526942,32420.0,32404.0,1.54124815]
[1625742066623,1.17526942,32420.0,32406.0,1.0]
[1625742066924,0.5037266,32420.0,32409.0,1.0]
[1625742067075,1.0072368,32422.0,32409.0,1.0]
[1625742067076,1.17576471,32422.0,32409.0,1.24888]
[1625742067222,1.17576471,32422.0,32410.0,0.00364577]
[1625742067372,0.50377327,32421.0,32410.0,0.00364577]
[1625742067822,0.79023327,32421.0,32410.0,0.00364577]
[1625742067973,1.46145463,32421.0,32405.0,0.003646]
[1625742068123,1.17412277,32419.0,32405.0,0.003646]
[1625742068674,0.50321943,32419.0,32403.0,0.00364614]
[1625742068807,0.50321943,32419.0,32406.0,0.00364627]
[1625742068961,0.50295312,32417.0,32406.0,0.00364627]
[1625742069113,0.50288072,32416.0,32403.0,0.00364631]
[1625742069475,0.50304121,32417.0,32401.0,0.00364627]
[1625742069773,0.50304121,32417.0,32404.0,0.00364624]
[1625742069949,0.50296176,32416.0,32400.0,0.34383442]
[1625742070124,1.8415848,32416.0,32400.0,0.34383442]
[1625742070227,0.66939517,32412.0,32394.0,0.72168746]
[1625742070374,0.66876541,32409.0,32391.0,4.50319422]
[1625742070523,0.66876541,32409.0,32395.0,0.00364723]
[1625742070676,0.66923494,32407.0,32395.0,0.00364723]
[1625742070824,0.66923494,32407.0,32392.0,0.00364723]
[1625742071124,0.66923494,32407.0,32391.0,4.50379109]
[1625742071275,0.66891839,32405.0,32391.0,3.78146395]
[1625742071424,0.99364839,32405.0,32391.0,3.78146395]
[1625742071574,0.99364839,32405.0,32392.0,0.00364748]
[1625742071726,0.32473,32405.0,32392.0,0.00364748]
[1625742072173,0.99387222,32405.0,32392.0,0.00364748]
[1625742072325,0.99387222,32405.0,32391.0,3.57111143]
[1625742072476,0.668886,32404.0,32391.0,3.57111143]
[1625742072626,0.66833788,32402.0,32391.0,3.57111143]
[1625742072927,1.0024233,32403.0,32391.0,3.57111143]
[1625742072928,0.66811001,32400.0,32391.0,3.57111143]
[1625742073378,0.66783759,32399.0,32391.0,3.57111143]
[1625742074281,0.66761761,32398.0,32391.0,3.57111143]
[1625742074442,0.91431761,32398.0,32391.0,3.57111143]
[1625742074600,0.66741487,32397.0,32391.0,3.57111143]
[1625742075037,0.66737283,32396.0,32391.0,3.57111143]
[1625742075780,0.66706439,32395.0,32391.0,3.57111143]
[1625742076531,0.66706439,32395.0,32391.0,3.32381143]
[1625742076681,0.66706439,32395.0,32391.0,3.28061143]
[1625742076682,0.66652423,32393.0,32391.0,3.28061143]
[1625742076832,0.66652423,32393.0,32391.0,3.12581143]
[1625742076982,2.82867586,32392.0,32391.0,3.12581143]
[1625742077131,4.16093414,32392.0,32391.0,3.12581143]
[1625742077431,4.16093414,32392.0,32391.0,3.12021143]
[1625742078183,4.16093414,32392.0,32391.0,1.5915445]
[1625742078333,4.16093414,32392.0,32391.0,1.5298445]
[1625742078488,4.66093414,32392.0,32373.0,0.4931409]
[1625742078702,0.66512728,32383.0,32369.0,1.80969199]
[1625742078859,0.5,32382.0,32369.0,1.77913267]
[1625742078961,1.49645312,32381.0,32368.0,0.8334]
[1625742079129,0.5,32380.0,32368.0,0.7846]
[1625742079236,0.99568031,32378.0,32368.0,0.6448]
[1625742079424,1.66159937,32380.0,32368.0,0.6448]
[1625742079425,1.49542399,32377.0,32368.0,0.6448]
[1625742079553,0.99542399,32377.0,32368.0,0.584]
[1625742079700,0.99501986,32376.0,32368.0,0.584]
[1625742079854,1.33314986,32376.0,32368.0,0.584]
[1625742080162,0.99494823,32375.0,32368.0,0.584]
[1625742080474,0.33813,32376.0,32368.0,0.584]
[1625742081037,1.49432544,32379.0,32368.0,0.584]
[1625742081188,0.99432544,32379.0,32368.0,0.584]
[1625742081335,0.9942636,32378.0,32368.0,0.584]
[1625742081488,1.3343136,32378.0,32368.0,0.584]
[1625742081635,0.99400009,32377.0,32368.0,0.584]
[1625742082843,0.99400009,32377.0,32368.0,0.484]
[1625742082993,1.49400009,32377.0,32368.0,0.465]
[1625742083143,1.49400009,32377.0,32368.0,0.451]
[1625742083288,1.49400009,32377.0,32356.0,1.0837475]
[1625742083437,0.99400009,32377.0,32356.0,1.0837475]
[1625742084112,0.99400009,32377.0,32354.0,1.26426976]
[1625742084113,0.99276144,32375.0,32354.0,1.08372078]
[1625742084266,0.0933,32374.0,32354.0,1.08372078]
[1625742084713,0.0933,32374.0,32353.0,1.08268803]
[1625742085317,0.5,32376.0,32353.0,1.08268803]
[1625742085614,1.49149871,32376.0,32353.0,1.08268803]
[1625742086364,0.0929,32375.0,32353.0,1.08268803]
[1625742086665,1.4156432,32379.0,32352.0,1.08185115]
[1625742086666,0.99052815,32377.0,32352.0,1.08185115]
[1625742086816,0.99052815,32377.0,32352.0,1.36478115]
[1625742086969,1.08484704,32379.0,32354.0,1.08182126]
[1625742087119,0.99114704,32379.0,32354.0,1.08182126]
[1625742087265,0.99087673,32378.0,32354.0,1.08182126]
[1625742087416,0.9908707,32379.0,32354.0,1.08182126]
[1625742088167,0.98957436,32380.0,32355.0,1.08177842]
[1625742088467,0.98996454,32381.0,32356.0,1.08176968]
[1625742088616,0.98996454,32381.0,32355.0,1.08141033]
[1625742088918,0.98996454,32381.0,32356.0,1.0813868]
[1625742089218,0.98996454,32381.0,32355.0,1.08140018]
[1625742089369,1.22903454,32381.0,32355.0,1.08140018]
[1625742089542,0.98887337,32379.0,32353.0,1.08146704]
[1625742089898,0.98887337,32379.0,32350.0,1.44195605]
[1625742089899,0.98857957,32377.0,32352.0,1.08156863]
[1625742090197,0.98869176,32378.0,32352.0,1.08156863]
[1625742090497,1.15331538,32379.0,32352.0,1.08156863]
[1625742090498,0.98858093,32377.0,32352.0,1.08156863]
[1625742090819,0.98788995,32375.0,32350.0,1.08162898]
[1625742090965,0.0919,32374.0,32350.0,1.08162898]
[1625742091176,0.98653728,32373.0,32349.0,0.9584]
[1625742091249,0.98653728,32373.0,32349.0,1.4584]
[1625742091407,0.98820579,32378.0,32353.0,1.0]
[1625742091563,0.98883726,32381.0,32353.0,1.32802868]
[1625742091875,1.15361601,32382.0,32353.0,0.24746]
[1625742091876,0.98817556,32378.0,32353.0,0.24746]
[1625742092047,1.32215556,32378.0,32351.0,1.08066347]
[1625742092162,1.32215556,32378.0,32349.0,0.9584]
[1625742092163,0.98689706,32374.0,32349.0,0.9584]
[1625742092305,0.0927,32373.0,32349.0,0.9584]
[1625742092450,1.07923694,32373.0,32349.0,0.9584]
[1625742092749,0.98653694,32373.0,32349.0,0.9584]
[1625742093200,1.31532779,32376.0,32349.0,0.9584]
[1625742093201,0.98638442,32374.0,32349.0,0.9584]
[1625742093352,0.98638442,32374.0,32349.0,1.30613]
[1625742093527,0.98655952,32375.0,32349.0,2.30613]
[1625742093805,1.47949445,32381.0,32350.0,1.0]
[1625742093806,0.98690732,32377.0,32350.0,1.0]
[1625742093985,1.64473589,32389.0,32350.0,1.0]
[1625742093986,0.98790727,32380.0,32352.0,1.08005712]
[1625742094103,0.98790727,32380.0,32356.0,1.0]
[1625742094253,0.9881971,32381.0,32356.0,1.28985]
[1625742094452,0.9881971,32381.0,32356.0,0.28985]
[1625742094563,0.98899562,32383.0,32359.0,1.0]
[1625742094703,1.3186059,32386.0,32359.0,1.0]
[1625742094704,0.98930225,32384.0,32359.0,1.0]
[1625742094862,0.98930225,32384.0,32356.0,1.36975635]
[1625742095022,0.9886813,32382.0,32356.0,0.28985]
[1625742095476,0.98817073,32381.0,32356.0,0.28985]
[1625742096128,1.20479073,32381.0,32352.0,1.0800474]
[1625742096279,0.98780053,32380.0,32351.0,2.0798722]
[1625742096579,0.98780053,32380.0,32351.0,1.0798722]
[1625742097704,0.98780053,32380.0,32351.0,1.5798722]
[1625742097856,0.98784566,32381.0,32354.0,1.0]
[1625742098006,0.98784566,32381.0,32354.0,1.34493]
[1625742098157,0.98825625,32382.0,32356.0,1.0]
[1625742098456,0.98825625,32382.0,32355.0,0.0036506]
[1625742098457,0.98876346,32384.0,32358.0,1.0]
[1625742098606,1.15352991,32385.0,32358.0,1.0]
[1625742098607,0.98895418,32385.0,32358.0,1.0]
[1625742098756,0.98895418,32385.0,32357.0,0.00365064]
[1625742098757,0.98895418,32385.0,32357.0,1.00365064]
[1625742098906,0.98895418,32385.0,32357.0,1.0]
[1625742099057,0.98895418,32385.0,32358.0,1.0]
[1625742099209,0.98895418,32385.0,32360.0,1.0]
[1625742099508,0.98895418,32385.0,32362.0,1.0]
[1625742099658,0.98895418,32385.0,32362.0,1.28602]
[1625742099808,0.98895418,32385.0,32362.0,0.28602]
[1625742099962,0.98868865,32384.0,32363.0,0.00365064]
[1625742100108,0.98896481,32385.0,32363.0,0.00365064]
[1625742100411,0.98886271,32384.0,32362.0,0.28602]
[1625742100858,0.98886271,32384.0,32363.0,0.00365076]
[1625742101160,0.98788696,32379.0,32356.0,0.9242]
[1625742101459,0.98789515,32378.0,32357.0,0.00365137]
[1625742101759,0.9879018,32377.0,32357.0,0.00365137]
[1625742102059,0.98840406,32379.0,32357.0,0.00365137]
[1625742102659,0.98820487,32378.0,32357.0,0.00365137]
[1625742102961,0.98826183,32379.0,32357.0,0.00365137]
[1625742103411,0.98782647,32377.0,32357.0,0.00365137]
[1625742103565,1.21856647,32377.0,32357.0,0.00365137]
[1625742103709,0.98762602,32376.0,32357.0,0.00365137]
[1625742104009,0.23074,32377.0,32357.0,0.00365137]
[1625742104010,0.98697006,32375.0,32357.0,0.00365137]
[1625742104311,0.98720654,32376.0,32357.0,0.00365137]
[1625742105212,0.23074,32377.0,32357.0,0.30059137]
[1625742105213,0.98762147,32377.0,32357.0,0.30059137]
[1625742105510,1.31677376,32380.0,32357.0,0.30059137]
[1625742105511,0.9883621,32379.0,32357.0,0.30059137]
[1625742105678,0.9883621,32379.0,32358.0,0.00365151]
[1625742105973,0.9886681,32380.0,32358.0,0.00365151]
[1625742106111,1.15250401,32379.0,32358.0,0.00365151]
[1625742106263,0.98788409,32377.0,32358.0,0.00365151]
[1625742107012,1.32630409,32377.0,32357.0,0.00365155]
[1625742107505,0.0928,32376.0,32357.0,0.00365155]
[1625742107618,0.01825874,32376.0,32357.0,0.00365155]
[1625742107766,0.9868418,32375.0,32357.0,0.00365155]
[1625742107918,0.98653587,32374.0,32357.0,0.00365155]
[1625742108219,0.98641727,32373.0,32357.0,0.00365155]
[1625742108368,1.00467758,32373.0,32357.0,0.00365155]
[1625742108669,0.98658147,32374.0,32357.0,0.00365155]
[1625742108969,0.01826107,32373.0,32357.0,0.00365155]
[1625742109195,0.98619046,32372.0,32357.0,0.00365155]
[1625742109971,0.98607894,32373.0,32357.0,0.00365155]
[1625742110099,0.98607894,32373.0,32357.0,0.32720155]
[1625742110248,0.98687242,32375.0,32357.0,0.32720155]
[1625742110395,0.98731524,32376.0,32357.0,0.32720155]
[1625742110619,0.98735915,32377.0,32358.0,0.00365155]
[1625742110845,0.98754159,32378.0,32358.0,0.00365155]
[1625742111148,0.98786366,32379.0,32363.0,1.0]
[1625742111296,0.98786366,32379.0,32364.0,1.0]
[1625742111448,0.98878098,32382.0,32364.0,0.33676]
[1625742111746,0.98863077,32381.0,32365.0,0.00365105]
[1625742111898,0.98855955,32380.0,32365.0,0.00365105]
[1625742112198,0.98870151,32381.0,32365.0,0.00365105]
[1625742112502,0.01825611,32380.0,32359.0,0.00365122]
[1625742112802,0.01825611,32380.0,32366.0,0.00365118]
[1625742112952,0.98778025,32379.0,32366.0,0.00365118]
[1625742113099,0.98778025,32379.0,32356.0,0.9242]
[1625742113100,0.98778025,32379.0,32360.0,0.00365143]
[1625742113553,0.98778025,32379.0,32357.0,0.00365146]
[1625742113704,1.00601895,32378.0,32361.0,0.00365158]
[1625742113853,0.98694483,32376.0,32361.0,0.00365158]
[1625742114005,0.98694483,32376.0,32357.0,0.00365172]
[1625742114154,1.0054146,32377.0,32357.0,0.00365172]
[1625742114304,0.98715602,32377.0,32357.0,0.00365172]
[1625742114604,0.98701899,32376.0,32357.0,0.00365172]
[1625742114905,1.00527725,32376.0,32357.0,0.00365172]
[1625742115054,0.98701899,32376.0,32357.0,0.00365172]
[1625742115205,0.9867086,32375.0,32357.0,0.00365172]
[1625742115357,1.00496742,32375.0,32357.0,0.00365172]
[1625742115655,0.24238,32381.0,32357.0,0.00365172]
[1625742115956,0.98694557,32376.0,32357.0,0.00365172]
[1625742116707,0.01825826,32375.0,32357.0,0.00365172]
[1625742117308,0.01825724,32376.0,32358.0,1.0]
[1625742117458,0.01825724,32376.0,32358.0,1.27359]
[1625742117607,0.98812849,32379.0,32358.0,1.27359]
[1625742117757,0.98812849,32379.0,32359.0,0.00365131]
[1625742117911,0.9885843,32380.0,32359.0,0.00365131]
[1625742118059,0.01825593,32378.0,32359.0,0.00365131]
[1625742118361,0.01825608,32379.0,32359.0,0.00365131]
[1625742118509,1.00681655,32379.0,32359.0,0.00365131]
[1625742118659,0.0182562,32377.0,32359.0,0.00365131]
[1625742118960,1.0066951,32378.0,32359.0,0.00365131]
[1625742119111,0.01825665,32376.0,32359.0,0.00365131]
[1625742119261,0.01825665,32376.0,32357.0,0.00365133]
[1625742119412,0.01825672,32377.0,32360.0,0.00365133]
[1625742119567,0.01825672,32377.0,32360.0,0.23691133]
[1625742119713,0.01825672,32377.0,32360.0,0.23326]
[1625742120012,0.01825672,32377.0,32361.0,0.00365127]
[1625742120838,0.01825621,32378.0,32361.0,0.00365127]
[1625742121290,1.00647017,32378.0,32361.0,0.00365127]
[1625742121437,0.98821396,32378.0,32357.0,0.00365143]
[1625742121587,1.34024396,32378.0,32357.0,0.00365143]
[1625742121738,1.00611149,32377.0,32362.0,0.00365154]
[1625742121887,1.00611149,32377.0,32358.0,0.00365154]
[1625742122188,0.01825819,32376.0,32357.0,0.00365164]
[1625742122339,0.32941612,32375.0,32357.0,0.00365164]
[1625742122788,0.01825797,32374.0,32357.0,0.00365164]
[1625742123237,0.34736215,32374.0,32357.0,0.00365164]
[1625742123539,0.01825759,32373.0,32357.0,0.00365164]
[1625742124212,0.34700606,32374.0,32357.0,0.00365164]
[1625742124363,0.32874854,32374.0,32357.0,0.00365164]
[1625742124664,0.01825828,32373.0,32357.0,0.00365164]
[1625742125041,0.34708719,32373.0,32357.0,0.00365164]
[1625742125339,0.01825828,32373.0,32357.0,0.00365164]
[1625742125489,0.32889474,32374.0,32357.0,0.00365164]
[1625742125941,0.093,32373.0,32357.0,0.00365164]
[1625742126090,0.32880762,32374.0,32357.0,0.00365164]
[1625742126539,0.01825794,32373.0,32357.0,0.00365164]
[1625742126691,0.34681544,32373.0,32357.0,0.00365164]
[1625742126994,0.32911786,32372.0,32357.0,0.00365164]
[1625742127142,0.34737687,32372.0,32357.0,0.00365164]
[1625742127292,0.32899253,32371.0,32357.0,0.00365164]
[1625742127444,0.32887236,32369.0,32357.0,0.00365164]
[1625742127743,0.32862393,32367.0,32357.0,0.00365164]
[1625742128042,0.01826143,32366.0,32357.0,0.00365164]
[1625742128643,0.32941524,32365.0,32357.0,0.00365164]
[1625742129548,0.32980403,32366.0,32357.0,0.00365164]
[1625742129698,0.33007254,32367.0,32357.0,0.00365164]
[1625742129997,0.33007254,32367.0,32357.0,0.29625164]
[1625742130147,0.3303316,32368.0,32357.0,0.29625164]
[1625742130297,0.01825792,32366.0,32357.0,0.29625164]
[1625742130597,0.01825756,32367.0,32358.0,0.00365151]
[1625742130751,0.33108973,32367.0,32358.0,0.00365151]
[1625742130898,0.33103559,32366.0,32358.0,0.00365151]
[1625742131048,0.58731409,32366.0,32358.0,0.00365151]
[1625742131348,0.34918452,32365.0,32358.0,0.00365151]
[1625742131646,0.34918452,32365.0,32357.0,0.00365188]
[1625742131949,0.01826022,32364.0,32359.0,0.00365204]
[1625742132248,0.01826022,32364.0,32358.0,0.00365219]
[1625742132400,0.3309253,32365.0,32360.0,0.00365219]
[1625742132698,0.3309253,32365.0,32357.0,0.00365222]
[1625742132999,0.33106723,32362.0,32357.0,0.00365222]
[1625742134896,0.33106723,32362.0,32357.0,0.36709992]
[1625742135120,0.23546,32363.0,32352.0,1.45379079]
[1625742135197,0.5,32361.0,32349.0,1.63551464]
[1625742135346,0.51826474,32361.0,32349.0,1.50311464]
[1625742135485,0.51826474,32361.0,32343.0,1.06342543]
[1625742135486,0.98947434,32353.0,32343.0,1.06342543]
[1625742135749,0.98947434,32353.0,32338.0,1.09078738]
[1625742135750,2.14163786,32350.0,32338.0,1.09078738]
[1625742135942,0.29408,32353.0,32335.0,1.45438317]
[1625742135943,0.988355,32346.0,32337.0,1.09078717]
[1625742136077,1.223515,32346.0,32339.0,0.00365357]
[1625742136231,0.23516,32346.0,32339.0,0.00365357]
[1625742136377,0.23516,32346.0,32338.0,1.09444514]
[1625742136676,0.23516,32346.0,32340.0,0.00365354]
[1625742136978,0.23516,32346.0,32335.0,1.2725155]
[1625742137370,0.23516,32346.0,32336.0,1.27245032]
[1625742137501,0.01827279,32345.0,32336.0,0.3833114]
[1625742137904,0.01827279,32345.0,32322.0,1.0]
[1625742137905,1.14896855,32337.0,32323.0,1.17801197]
[1625742137971,1.14896855,32337.0,32323.0,1.13201197]
[1625742137972,1.30928992,32330.0,32323.0,1.13201197]
[1625742138020,1.14564913,32328.0,32315.0,1.27318758]
[1625742138051,1.55193992,32330.0,32304.0,0.9268]
[1625742138052,1.14461929,32325.0,32312.0,1.27337154]
[1625742138230,0.5,32324.0,32312.0,1.27337154]
[1625742138353,0.5,32324.0,32304.0,0.9268]
[1625742138354,1.14344533,32321.0,32308.0,1.27360327]
[1625742138492,1.48864533,32321.0,32308.0,1.27360327]
[1625742138630,1.48864533,32321.0,32304.0,0.9268]
[1625742138631,1.14259645,32316.0,32304.0,2.20123094]
[1625742138783,0.3452,32321.0,32304.0,2.20123094]
[1625742138929,0.64930733,32319.0,32304.0,0.9268]
[1625742139092,0.64930733,32319.0,32298.0,8.1139]
[1625742139268,0.5,32318.0,32298.0,8.1139]
[1625742139455,0.64889673,32317.0,32298.0,8.1139]
[1625742139643,0.5,32316.0,32298.0,8.1139]
[1625742139699,0.64791274,32312.0,32298.0,8.1139]
[1625742139841,0.91140274,32312.0,32298.0,8.1139]
[1625742140002,0.16201749,32309.0,32298.0,8.0714]
[1625742140149,0.16218072,32311.0,32298.0,8.0714]
[1625742140431,0.26349,32312.0,32298.0,8.0714]
[1625742140881,0.16235332,32313.0,32298.0,8.0714]
[1625742141109,0.16184045,32316.0,32298.0,8.0714]
[1625742141446,1.85959941,32330.0,32298.0,8.0714]
[1625742141447,0.1619674,32317.0,32298.0,8.0714]
[1625742141561,0.1621482,32320.0,32298.0,8.0714]
[1625742141857,0.16225253,32322.0,32298.0,8.0714]
[1625742142005,0.16225253,32322.0,32298.0,8.41245]
[1625742142306,0.16236866,32324.0,32298.0,8.41245]
[1625742142777,0.16236866,32324.0,32298.0,9.41245]
[1625742142920,0.16236866,32324.0,32302.0,1.0]
[1625742143058,0.16249913,32326.0,32302.0,1.0]
[1625742143358,0.16249913,32326.0,32298.0,1.60314134]
[1625742143359,0.16259518,32328.0,32300.0,1.26203268]
[1625742143515,0.16259518,32328.0,32298.0,0.34105]
[1625742143678,0.16259518,32328.0,32310.0,1.0]
[1625742143856,0.64989343,32330.0,32310.0,1.0]
[1625742143857,0.16247541,32330.0,32310.0,1.34491]
[1625742143960,0.16247541,32330.0,32310.0,0.34491]
[1625742144112,0.16269794,32334.0,32310.0,0.34491]
[1625742144260,0.16269794,32334.0,32312.0,1.0]
[1625742144413,0.16279276,32335.0,32310.0,0.34491]
[1625742144711,0.16278455,32336.0,32316.0,1.0]
[1625742145011,0.16295209,32339.0,32324.0,1.0]
[1625742145163,0.16310172,32342.0,32324.0,1.27804]
[1625742145313,0.16310172,32342.0,32324.0,0.27804]
[1625742145467,0.16302492,32340.0,32324.0,0.27804]
[1625742145616,0.40043492,32340.0,32324.0,0.27804]
[1625742146215,0.40043492,32340.0,32314.0,1.0]
[1625742146363,0.40043492,32340.0,32316.0,1.0]
[1625742146514,0.16285581,32339.0,32316.0,1.0]
[1625742146665,0.16285581,32339.0,32314.0,1.0]
[1625742146965,0.16285581,32339.0,32315.0,1.0]
[1625742147265,0.16285581,32339.0,32314.0,1.0]
[1625742147415,0.16285581,32339.0,32312.0,0.9912]
[1625742147567,0.23741,32340.0,32316.0,1.0]
[1625742147568,0.40023181,32340.0,32316.0,1.0]
[1625742147716,0.40023181,32340.0,32312.0,0.9912]
[1625742147717,0.16273614,32338.0,32315.0,1.0]
[1625742148015,0.16273614,32338.0,32316.0,1.0]
[1625742148316,0.16273614,32338.0,32314.0,1.0]
[1625742148541,0.16276916,32339.0,32312.0,0.9912]
[1625742148692,0.16287393,32341.0,32317.0,1.0]
[1625742148843,0.16287393,32341.0,32320.0,1.0]
[1625742149140,0.16287393,32341.0,32323.0,1.0]
[1625742149292,0.16289671,32342.0,32323.0,1.0]
[1625742149441,0.16289671,32342.0,32317.0,0.28352]
[1625742149442,0.16289671,32342.0,32320.0,1.0]
[1625742149591,0.16289671,32342.0,32324.0,1.0]
[1625742149742,0.65116996,32344.0,32324.0,1.0]
[1625742149743,0.16292343,32343.0,32324.0,1.2692]
[1625742149891,0.16306132,32345.0,32328.0,1.0]
[1625742150194,0.16307916,32346.0,32325.0,0.5]
[1625742150491,0.16307916,32346.0,32326.0,1.0]
[1625742150641,0.16307916,32346.0,32327.0,1.0]
[1625742150942,0.16306734,32345.0,32324.0,0.2692]
[1625742151092,0.16306734,32345.0,32325.0,0.5]